[Event "*** Titled Tuesday Blitz"]
[Site "Chess.com"]
[Date "2020.05.26"]
[Round "6"]
[White "almaguerjm"]
[Black "Korchmar_Vasiliy"]
[Result "0-1"]
[WhiteElo "2348"]
[BlackElo "2575"]
[TimeControl "180+1"]
[EndTime "11:07:56 PDT"]
[Termination "Korchmar_Vasiliy won by resignation"]

1. d4 {[%clk 0:03:00.9]} 1... Nf6 {[%clk 0:02:59.7]} 2. Nc3 {[%clk 0:03:00.2]}
2... d5 {[%clk 0:02:59]} 3. Bf4 {[%clk 0:03:00]} 3... a6 {[%clk 0:02:59.1]} 4.
e3 {[%clk 0:02:59.3]} 4... Nbd7 {[%clk 0:02:56.7]} 5. g4 {[%clk 0:02:57.9]} 5...
h6 {[%clk 0:02:50.3]} 6. h4 {[%clk 0:02:56.3]} 6... g6 {[%clk 0:02:18.7]} 7. Bg2
{[%clk 0:02:35.7]} 7... Nb6 {[%clk 0:02:18.7]} 8. g5 {[%clk 0:02:32.3]} 8... Nh5
{[%clk 0:02:11.9]} 9. Be5 {[%clk 0:01:54]} 9... f6 {[%clk 0:02:12]} 10. gxf6
{[%clk 0:01:53.2]} 10... exf6 {[%clk 0:02:12.9]} 11. Bh2 {[%clk 0:01:52.5]}
11... Bb4 {[%clk 0:01:48.5]} 12. Ne2 {[%clk 0:01:49.9]} 12... Nc4 {[%clk
0:01:46]} 13. Rb1 {[%clk 0:01:42.5]} 13... c6 {[%clk 0:01:41.2]} 14. a3 {[%clk
0:01:37.5]} 14... Ba5 {[%clk 0:01:40.3]} 15. Qd3 {[%clk 0:01:32.4]} 15... Bf5
{[%clk 0:01:39.8]} 16. e4 {[%clk 0:01:32.7]} 16... Be6 {[%clk 0:01:27.9]} 17.
exd5 {[%clk 0:01:30]} 17... cxd5 {[%clk 0:01:28.8]} 18. Qxg6+ {[%clk 0:01:28.8]}
18... Bf7 {[%clk 0:01:29.4]} 19. Qd3 {[%clk 0:01:20.8]} 19... Rg8 {[%clk
0:01:17.4]} 20. Bh3 {[%clk 0:01:08.5]} 20... Qe7 {[%clk 0:00:57.3]} 21. Qf5
{[%clk 0:00:55]} 21... Nxb2 {[%clk 0:00:35.1]} 22. Qd7+ {[%clk 0:00:39.5]} 22...
Qxd7 {[%clk 0:00:33.2]} 23. Bxd7+ {[%clk 0:00:40.4]} 23... Kxd7 {[%clk
0:00:34.1]} 24. Rxb2 {[%clk 0:00:40.9]} 24... b5 {[%clk 0:00:29.7]} 25. Kd1
{[%clk 0:00:35.4]} 25... Rac8 {[%clk 0:00:28.4]} 26. Na2 {[%clk 0:00:34.4]}
26... Rg2 {[%clk 0:00:27]} 27. Bg3 {[%clk 0:00:20.5]} 27... Be6 {[%clk
0:00:25.5]} 28. Nb4 {[%clk 0:00:19.7]} 28... Bg4 {[%clk 0:00:22.9]} 29. c3
{[%clk 0:00:17.8]} 29... Bxb4 {[%clk 0:00:13.8]} 30. cxb4 {[%clk 0:00:15.5]}
30... Nxg3 {[%clk 0:00:12.4]} 31. fxg3 {[%clk 0:00:15.3]} 31... Re8 {[%clk
0:00:13]} 32. Re1 {[%clk 0:00:14.9]} 32... Re3 {[%clk 0:00:10.3]} 33. Rc2 {[%clk
0:00:07.2]} 33... Kd6 {[%clk 0:00:07.7]} 34. Rb2 {[%clk 0:00:06.2]} 34... Rexg3
{[%clk 0:00:07.4]} 35. Kc1 {[%clk 0:00:05.4]} 35... Re3 {[%clk 0:00:07]} 36. Kd1
{[%clk 0:00:04.9]} 36... h5 {[%clk 0:00:07.4]} 37. Rd2 {[%clk 0:00:04.7]} 37...
f5 {[%clk 0:00:07.8]} 38. Rc2 {[%clk 0:00:04]} 38... f4 {[%clk 0:00:08.3]} 39.
Kd2 {[%clk 0:00:04.4]} 39... Rexe2+ {[%clk 0:00:06.9]} 40. Rxe2 {[%clk
0:00:04.5]} 40... Rxe2+ {[%clk 0:00:07.8]} 0-1

[Event "*** Titled Tuesday Blitz"]
[Site "Chess.com"]
[Date "2020.05.26"]
[Round "6"]
[White "mortngabriel"]
[Black "PawnEatingZombie"]
[Result "0-1"]
[WhiteElo "2429"]
[BlackElo "2266"]
[TimeControl "180+1"]
[EndTime "11:07:58 PDT"]
[Termination "PawnEatingZombie won on time"]

1. Nf3 {[%clk 0:03:00.9]} 1... d5 {[%clk 0:02:59.1]} 2. b3 {[%clk 0:03:01.8]}
2... Bg4 {[%clk 0:02:56.8]} 3. Bb2 {[%clk 0:03:01.3]} 3... e6 {[%clk 0:02:57.4]}
4. e3 {[%clk 0:02:47.7]} 4... Nf6 {[%clk 0:02:56.5]} 5. Be2 {[%clk 0:02:37.4]}
5... Nbd7 {[%clk 0:02:56]} 6. O-O {[%clk 0:02:36.6]} 6... Bd6 {[%clk 0:02:51.6]}
7. d4 {[%clk 0:02:36.2]} 7... O-O {[%clk 0:02:44.8]} 8. Nbd2 {[%clk 0:02:35.3]}
8... a5 {[%clk 0:02:44]} 9. a3 {[%clk 0:02:32.8]} 9... c6 {[%clk 0:02:41.9]} 10.
c4 {[%clk 0:02:31.1]} 10... Qe7 {[%clk 0:02:37.5]} 11. Ne5 {[%clk 0:02:28.3]}
11... Bxe2 {[%clk 0:02:35.8]} 12. Qxe2 {[%clk 0:02:29.2]} 12... c5 {[%clk
0:01:59.2]} 13. Nxd7 {[%clk 0:02:14.3]} 13... Qxd7 {[%clk 0:01:54.4]} 14. cxd5
{[%clk 0:02:14.2]} 14... Nxd5 {[%clk 0:01:50]} 15. Nc4 {[%clk 0:02:08.4]} 15...
Qb5 {[%clk 0:01:11.2]} 16. Qg4 {[%clk 0:01:47.3]} 16... Be7 {[%clk 0:00:59.4]}
17. dxc5 {[%clk 0:01:12.3]} 17... Bf6 {[%clk 0:00:57.3]} 18. Nd6 {[%clk
0:00:47.5]} 18... Qxb3 {[%clk 0:00:41]} 19. Bxf6 {[%clk 0:00:46.3]} 19... Nxf6
{[%clk 0:00:40.9]} 20. Qf3 {[%clk 0:00:47.2]} 20... Rac8 {[%clk 0:00:28.3]} 21.
Nxc8 {[%clk 0:00:46.7]} 21... Rxc8 {[%clk 0:00:26.9]} 22. Rfb1 {[%clk
0:00:47.3]} 22... Qc2 {[%clk 0:00:17.8]} 23. Qxb7 {[%clk 0:00:34.3]} 23... Qxc5
{[%clk 0:00:16.9]} 24. h3 {[%clk 0:00:30.7]} 24... h5 {[%clk 0:00:16.7]} 25. Rc1
{[%clk 0:00:30.5]} 25... Qxc1+ {[%clk 0:00:15.5]} 26. Rxc1 {[%clk 0:00:31.4]}
26... Rxc1+ {[%clk 0:00:15.2]} 27. Kh2 {[%clk 0:00:32]} 27... Rc2 {[%clk
0:00:11]} 28. f3 {[%clk 0:00:23.5]} 28... Nd5 {[%clk 0:00:10.6]} 29. e4 {[%clk
0:00:19.1]} 29... Ne3 {[%clk 0:00:07.7]} 30. Qb8+ {[%clk 0:00:09.7]} 30... Kh7
{[%clk 0:00:07]} 31. Qb3 {[%clk 0:00:10]} 31... Rxg2+ {[%clk 0:00:05.8]} 32. Kh1
{[%clk 0:00:09.1]} 32... Re2 {[%clk 0:00:06.3]} 33. Qd3 {[%clk 0:00:07.3]} 33...
Re1+ {[%clk 0:00:05.9]} 34. Kh2 {[%clk 0:00:07.8]} 34... h4 {[%clk 0:00:02.8]}
35. e5+ {[%clk 0:00:04.2]} 35... g6 {[%clk 0:00:02]} 36. a4 {[%clk 0:00:03.6]}
36... Nf1+ {[%clk 0:00:01.1]} 37. Kg2 {[%clk 0:00:03.2]} 37... Ng3 {[%clk
0:00:01.1]} 38. Kf2 {[%clk 0:00:01.1]} 38... Re2+ {[%clk 0:00:01.2]} 0-1

[Event "*** Titled Tuesday Blitz"]
[Site "Chess.com"]
[Date "2020.05.26"]
[Round "6"]
[White "The_Machine04"]
[Black "Lagravesamuell"]
[Result "0-1"]
[WhiteElo "2295"]
[BlackElo "2468"]
[TimeControl "180+1"]
[EndTime "11:07:59 PDT"]
[Termination "Lagravesamuell won on time"]

1. d4 {[%clk 0:02:54.7]} 1... Nf6 {[%clk 0:02:54.7]} 2. Bg5 {[%clk 0:02:53]}
2... e6 {[%clk 0:02:50.4]} 3. Nd2 {[%clk 0:02:51.2]} 3... d5 {[%clk 0:02:50.1]}
4. e3 {[%clk 0:02:50.8]} 4... c5 {[%clk 0:02:48]} 5. c3 {[%clk 0:02:49.7]} 5...
h6 {[%clk 0:02:45.6]} 6. Bf4 {[%clk 0:02:43.9]} 6... Bd6 {[%clk 0:02:45.1]} 7.
Bg3 {[%clk 0:02:42.8]} 7... Qc7 {[%clk 0:02:43.4]} 8. Bd3 {[%clk 0:02:39.2]}
8... Nbd7 {[%clk 0:02:40.8]} 9. Bxd6 {[%clk 0:02:38.2]} 9... Qxd6 {[%clk
0:02:40.8]} 10. f4 {[%clk 0:02:38.7]} 10... g5 {[%clk 0:02:40]} 11. g3 {[%clk
0:02:32.7]} 11... gxf4 {[%clk 0:02:19.9]} 12. gxf4 {[%clk 0:02:26.7]} 12... b6
{[%clk 0:01:41.6]} 13. Ngf3 {[%clk 0:02:24.3]} 13... Bb7 {[%clk 0:01:41.9]} 14.
Ne5 {[%clk 0:02:19.4]} 14... Ke7 {[%clk 0:01:34.6]} 15. Qf3 {[%clk 0:02:07.3]}
15... c4 {[%clk 0:01:10.8]} 16. Bc2 {[%clk 0:02:06.1]} 16... b5 {[%clk
0:01:10.8]} 17. Rg1 {[%clk 0:01:58.2]} 17... Rag8 {[%clk 0:01:08.3]} 18. Ke2
{[%clk 0:01:49.6]} 18... b4 {[%clk 0:00:54.3]} 19. Qh3 {[%clk 0:01:15]} 19...
bxc3 {[%clk 0:00:41.7]} 20. bxc3 {[%clk 0:01:13.7]} 20... Qa3 {[%clk 0:00:42.2]}
21. Rab1 {[%clk 0:01:04.6]} 21... Bc8 {[%clk 0:00:27.9]} 22. Rxg8 {[%clk
0:00:25.8]} 22... Rxg8 {[%clk 0:00:24.8]} 23. f5 {[%clk 0:00:20.5]} 23... Nf8
{[%clk 0:00:11.6]} 24. Rb8 {[%clk 0:00:15.5]} 24... N8d7 {[%clk 0:00:09]} 25.
Nxd7 {[%clk 0:00:14]} 25... Bxd7 {[%clk 0:00:09.1]} 26. Rxg8 {[%clk 0:00:13.2]}
26... Nxg8 {[%clk 0:00:09.7]} 27. fxe6 {[%clk 0:00:13.2]} 27... Bxe6 {[%clk
0:00:10.1]} 28. Qh4+ {[%clk 0:00:13.2]} 28... Nf6 {[%clk 0:00:10.3]} 29. Qg3
{[%clk 0:00:10.4]} 29... Qxc3 {[%clk 0:00:09.5]} 30. Qc7+ {[%clk 0:00:09.1]}
30... Nd7 {[%clk 0:00:10]} 31. Ba4 {[%clk 0:00:08.1]} 31... Bg4+ {[%clk
0:00:09.8]} 32. Ke1 {[%clk 0:00:06.9]} 32... Qxe3+ {[%clk 0:00:10.2]} 33. Kf1
{[%clk 0:00:07.2]} 33... Qe2+ {[%clk 0:00:07.1]} 34. Kg1 {[%clk 0:00:06.7]}
34... Qxd2 {[%clk 0:00:07.6]} 35. Bxd7 {[%clk 0:00:05.6]} 35... Qxd4+ {[%clk
0:00:07.7]} 36. Kg2 {[%clk 0:00:03.9]} 36... Bxd7 {[%clk 0:00:07.4]} 0-1

[Event "*** Titled Tuesday Blitz"]
[Site "Chess.com"]
[Date "2020.05.26"]
[Round "6"]
[White "Gerasimenyuk_Miha"]
[Black "Morshynska"]
[Result "1-0"]
[WhiteElo "2402"]
[BlackElo "2178"]
[TimeControl "180+1"]
[EndTime "11:07:59 PDT"]
[Termination "Gerasimenyuk_Miha won on time"]

1. d4 {[%clk 0:02:54.4]} 1... d5 {[%clk 0:02:58.5]} 2. Nf3 {[%clk 0:02:54.7]}
2... Nf6 {[%clk 0:02:57.1]} 3. Bg5 {[%clk 0:02:54.3]} 3... Ne4 {[%clk
0:02:55.9]} 4. Bh4 {[%clk 0:02:53.3]} 4... c5 {[%clk 0:02:43.7]} 5. e3 {[%clk
0:02:53.3]} 5... Qb6 {[%clk 0:02:35.6]} 6. Nc3 {[%clk 0:02:50.5]} 6... Nxc3
{[%clk 0:02:32]} 7. bxc3 {[%clk 0:02:50.6]} 7... Nc6 {[%clk 0:02:17]} 8. Bd3
{[%clk 0:02:47]} 8... c4 {[%clk 0:02:10]} 9. Be2 {[%clk 0:02:46.6]} 9... Qa5
{[%clk 0:02:02.2]} 10. Qd2 {[%clk 0:02:43.7]} 10... Bf5 {[%clk 0:01:59.9]} 11.
O-O {[%clk 0:02:42.7]} 11... e6 {[%clk 0:01:59.6]} 12. Rab1 {[%clk 0:02:40.7]}
12... b5 {[%clk 0:01:57]} 13. Ne5 {[%clk 0:02:37.4]} 13... Nxe5 {[%clk 0:01:56]}
14. dxe5 {[%clk 0:02:38.3]} 14... Ba3 {[%clk 0:01:44.3]} 15. f3 {[%clk
0:02:29.2]} 15... O-O {[%clk 0:01:41]} 16. e4 {[%clk 0:02:23.6]} 16... dxe4
{[%clk 0:01:35]} 17. fxe4 {[%clk 0:02:24.5]} 17... Bxe4 {[%clk 0:01:29.9]} 18.
Bh5 {[%clk 0:02:16.7]} 18... b4 {[%clk 0:01:00.7]} 19. cxb4 {[%clk 0:02:09.6]}
19... Qxe5 {[%clk 0:00:57.4]} 20. Qe2 {[%clk 0:01:53.7]} 20... a5 {[%clk
0:00:40.6]} 21. Rbe1 {[%clk 0:01:46.9]} 21... f5 {[%clk 0:00:34.2]} 22. Qxc4
{[%clk 0:01:38.1]} 22... Bxb4 {[%clk 0:00:29.5]} 23. Re2 {[%clk 0:01:28.4]}
23... Rac8 {[%clk 0:00:24.8]} 24. Qb3 {[%clk 0:01:25.1]} 24... Rc3 {[%clk
0:00:20.7]} 25. Qa4 {[%clk 0:01:21.3]} 25... Qc5+ {[%clk 0:00:17.1]} 26. Bf2
{[%clk 0:01:17.3]} 26... Qc6 {[%clk 0:00:16.8]} 27. Qxc6 {[%clk 0:01:08.7]}
27... Rxc6 {[%clk 0:00:17.7]} 28. Bf3 {[%clk 0:01:01.2]} 28... Bxf3 {[%clk
0:00:16.5]} 29. gxf3 {[%clk 0:01:02.1]} 29... Kf7 {[%clk 0:00:16.1]} 30. Rd1
{[%clk 0:00:59.3]} 30... Rd6 {[%clk 0:00:15.9]} 31. Rb1 {[%clk 0:00:54]} 31...
Rc8 {[%clk 0:00:14.2]} 32. a3 {[%clk 0:00:45.9]} 32... Bxa3 {[%clk 0:00:12.4]}
33. Rb7+ {[%clk 0:00:46.3]} 33... Kg8 {[%clk 0:00:09.8]} 34. Bg3 {[%clk
0:00:45.3]} 34... Bc5+ {[%clk 0:00:07.7]} 35. Kg2 {[%clk 0:00:44.6]} 35... Rb6
{[%clk 0:00:06.9]} 36. Ra7 {[%clk 0:00:38]} 36... Bb4 {[%clk 0:00:04.3]} 37. Be5
{[%clk 0:00:37.7]} 37... Bf8 {[%clk 0:00:01.3]} 38. c3 {[%clk 0:00:34.1]} 38...
Rbc6 {[%clk 0:00:01.5]} 39. Rxa5 {[%clk 0:00:31.5]} 39... Rc5 {[%clk 0:00:01.8]}
40. Ra7 {[%clk 0:00:29.7]} 40... Rc4 {[%clk 0:00:01.5]} 41. Bd4 {[%clk
0:00:28.5]} 1-0

[Event "*** Titled Tuesday Blitz"]
[Site "Chess.com"]
[Date "2020.05.26"]
[Round "6"]
[White "Sanyura"]
[Black "Evgeny81"]
[Result "1-0"]
[WhiteElo "2496"]
[BlackElo "2702"]
[TimeControl "180+1"]
[EndTime "11:08:00 PDT"]
[Termination "Sanyura won by resignation"]

1. e4 {[%clk 0:03:00.9]} 1... c5 {[%clk 0:02:59.5]} 2. Nf3 {[%clk 0:03:00.9]}
2... d6 {[%clk 0:02:59.3]} 3. d4 {[%clk 0:03:01]} 3... cxd4 {[%clk 0:02:59.4]}
4. Nxd4 {[%clk 0:03:01.9]} 4... Nf6 {[%clk 0:02:59.3]} 5. Nc3 {[%clk 0:03:02.5]}
5... a6 {[%clk 0:02:59.1]} 6. g3 {[%clk 0:02:51.3]} 6... e5 {[%clk 0:02:56.8]}
7. Nb3 {[%clk 0:02:51.2]} 7... b5 {[%clk 0:02:56]} 8. Bg2 {[%clk 0:02:50]} 8...
Bb7 {[%clk 0:02:56.3]} 9. O-O {[%clk 0:02:49.7]} 9... Be7 {[%clk 0:02:55.8]} 10.
a4 {[%clk 0:02:49.6]} 10... b4 {[%clk 0:02:55.7]} 11. Nd5 {[%clk 0:02:49.8]}
11... Bxd5 {[%clk 0:02:55.6]} 12. exd5 {[%clk 0:02:50.7]} 12... O-O {[%clk
0:02:55.3]} 13. Bd2 {[%clk 0:02:50.7]} 13... a5 {[%clk 0:02:54.1]} 14. c3 {[%clk
0:02:51.1]} 14... Na6 {[%clk 0:02:50.8]} 15. cxb4 {[%clk 0:02:43.2]} 15... Nxb4
{[%clk 0:02:43.9]} 16. Bxb4 {[%clk 0:02:40]} 16... axb4 {[%clk 0:02:44.5]} 17.
Qd2 {[%clk 0:02:39.3]} 17... Qb6 {[%clk 0:02:40.6]} 18. Rfc1 {[%clk 0:02:31.8]}
18... Rfb8 {[%clk 0:02:25.8]} 19. Rc6 {[%clk 0:02:12.1]} 19... Qd8 {[%clk
0:02:24.9]} 20. a5 {[%clk 0:02:12.7]} 20... g6 {[%clk 0:02:18.2]} 21. a6 {[%clk
0:02:00.3]} 21... Nd7 {[%clk 0:02:16.8]} 22. a7 {[%clk 0:00:53.2]} 22... Rb7
{[%clk 0:02:13.9]} 23. Qe3 {[%clk 0:00:30]} 23... Nb6 {[%clk 0:02:08.3]} 24. Ra6
{[%clk 0:00:19.7]} 24... Nc8 {[%clk 0:02:05.2]} 25. Na5 {[%clk 0:00:17.5]} 25...
Rbxa7 {[%clk 0:02:02.8]} 26. Rxc8 {[%clk 0:00:17.4]} 26... Qxc8 {[%clk 0:01:02]}
27. Rxa7 {[%clk 0:00:17.4]} 27... Rxa7 {[%clk 0:01:01]} 28. Qxa7 {[%clk
0:00:18.3]} 28... Qc1+ {[%clk 0:01:01.2]} 29. Bf1 {[%clk 0:00:18.2]} 29... Bg5
{[%clk 0:01:01.3]} 30. Qb8+ {[%clk 0:00:17.3]} 30... Kg7 {[%clk 0:01:00.7]} 31.
Qxd6 {[%clk 0:00:17.5]} 31... Bf6 {[%clk 0:00:42.8]} 32. Qxb4 {[%clk 0:00:15.5]}
32... Qd1 {[%clk 0:00:38.4]} 33. Qe4 {[%clk 0:00:15]} 33... h5 {[%clk
0:00:30.4]} 34. Nc4 {[%clk 0:00:15.2]} 34... Qc1 {[%clk 0:00:25.1]} 35. d6
{[%clk 0:00:15.4]} 35... Qd1 {[%clk 0:00:24.4]} 36. Qe2 {[%clk 0:00:15]} 36...
Qd4 {[%clk 0:00:23.4]} 37. Qd3 {[%clk 0:00:15.4]} 37... Qc5 {[%clk 0:00:19.2]}
38. d7 {[%clk 0:00:15.1]} 38... Bd8 {[%clk 0:00:19.7]} 39. Qd6 {[%clk
0:00:13.3]} 39... Qa7 {[%clk 0:00:14.8]} 40. Qxe5+ {[%clk 0:00:13.4]} 40... Kh7
{[%clk 0:00:13.6]} 41. Qe8 {[%clk 0:00:13.6]} 41... Qb8 {[%clk 0:00:10.3]} 42.
Qxf7+ {[%clk 0:00:13.7]} 42... Kh6 {[%clk 0:00:10.8]} 43. Bd3 {[%clk 0:00:10.5]}
1-0

[Event "*** Titled Tuesday Blitz"]
[Site "Chess.com"]
[Date "2020.05.26"]
[Round "6"]
[White "Efremov_Vlad"]
[Black "GM4life"]
[Result "0-1"]
[WhiteElo "2149"]
[BlackElo "2374"]
[TimeControl "180+1"]
[EndTime "11:08:00 PDT"]
[Termination "GM4life won on time"]

1. c4 {[%clk 0:03:00.9]} 1... e6 {[%clk 0:02:55.9]} 2. d4 {[%clk 0:02:59.8]}
2... d5 {[%clk 0:02:56.2]} 3. Nf3 {[%clk 0:02:59.8]} 3... Nf6 {[%clk 0:02:56.2]}
4. Nc3 {[%clk 0:03:00]} 4... Bb4 {[%clk 0:02:55.6]} 5. Qa4+ {[%clk 0:02:58.5]}
5... Nc6 {[%clk 0:02:54.7]} 6. e3 {[%clk 0:02:58.7]} 6... O-O {[%clk 0:02:54]}
7. Bd2 {[%clk 0:02:58.4]} 7... Bd7 {[%clk 0:02:53.6]} 8. Qc2 {[%clk 0:02:51.2]}
8... Re8 {[%clk 0:02:51.6]} 9. a3 {[%clk 0:02:45.1]} 9... Bf8 {[%clk 0:02:47.6]}
10. c5 {[%clk 0:02:45.1]} 10... b6 {[%clk 0:02:44.8]} 11. b4 {[%clk 0:02:44.6]}
11... bxc5 {[%clk 0:02:42.9]} 12. bxc5 {[%clk 0:02:39.5]} 12... Rb8 {[%clk
0:02:43.4]} 13. Bb5 {[%clk 0:02:19.8]} 13... a6 {[%clk 0:02:26.8]} 14. Bxc6
{[%clk 0:02:19.6]} 14... Bxc6 {[%clk 0:02:25.2]} 15. O-O {[%clk 0:02:16.9]}
15... Bb5 {[%clk 0:02:19.3]} 16. Rfb1 {[%clk 0:02:14.2]} 16... c6 {[%clk
0:02:14.4]} 17. a4 {[%clk 0:02:13.1]} 17... Bc4 {[%clk 0:02:12.5]} 18. Ne5
{[%clk 0:02:10.5]} 18... Qc7 {[%clk 0:02:07.6]} 19. Nxc4 {[%clk 0:02:09.8]}
19... dxc4 {[%clk 0:02:06.3]} 20. Ne2 {[%clk 0:02:02.8]} 20... Ng4 {[%clk
0:02:03.2]} 21. g3 {[%clk 0:01:48.9]} 21... e5 {[%clk 0:01:58]} 22. Qxc4 {[%clk
0:01:47.4]} 22... exd4 {[%clk 0:01:44]} 23. Nxd4 {[%clk 0:01:47]} 23... Qe5
{[%clk 0:01:26.8]} 24. h3 {[%clk 0:01:28.5]} 24... Nf6 {[%clk 0:00:50.6]} 25.
Nxc6 {[%clk 0:01:28.1]} 25... Rxb1+ {[%clk 0:00:47]} 26. Rxb1 {[%clk 0:01:27.4]}
26... Qf5 {[%clk 0:00:47.3]} 27. Rf1 {[%clk 0:01:20]} 27... Qxh3 {[%clk
0:00:46]} 28. Qh4 {[%clk 0:00:39.2]} 28... Qd7 {[%clk 0:00:45.5]} 29. Nd4 {[%clk
0:00:29]} 29... Bxc5 {[%clk 0:00:45.2]} 30. a5 {[%clk 0:00:23.7]} 30... Re4
{[%clk 0:00:41.6]} 31. Qg5 {[%clk 0:00:21]} 31... Bxd4 {[%clk 0:00:37.6]} 32.
exd4 {[%clk 0:00:21.1]} 32... Rxd4 {[%clk 0:00:25.1]} 33. Bc3 {[%clk 0:00:21.2]}
33... Rd5 {[%clk 0:00:25.1]} 34. Qf4 {[%clk 0:00:21]} 34... Qd8 {[%clk 0:00:14]}
35. Bxf6 {[%clk 0:00:18.8]} 35... gxf6 {[%clk 0:00:13.5]} 36. Rb1 {[%clk
0:00:12.5]} 36... Rd1+ {[%clk 0:00:13.3]} 37. Rxd1 {[%clk 0:00:11.5]} 37...
Qxd1+ {[%clk 0:00:14.2]} 38. Kh2 {[%clk 0:00:09.8]} 38... Qh5+ {[%clk
0:00:13.9]} 39. Kg2 {[%clk 0:00:07]} 39... Qxa5 {[%clk 0:00:13.5]} 40. Qg4+
{[%clk 0:00:06.9]} 40... Kf8 {[%clk 0:00:12.9]} 41. Qc8+ {[%clk 0:00:06.1]}
41... Ke7 {[%clk 0:00:13.4]} 42. Qb7+ {[%clk 0:00:06]} 42... Ke6 {[%clk
0:00:13.8]} 43. Qc6+ {[%clk 0:00:06.1]} 43... Ke5 {[%clk 0:00:13.7]} 44. Qd7
{[%clk 0:00:03.8]} 44... Qd5+ {[%clk 0:00:13.6]} 45. Qxd5+ {[%clk 0:00:04]}
45... Kxd5 {[%clk 0:00:14.5]} 0-1

[Event "*** Titled Tuesday Blitz"]
[Site "Chess.com"]
[Date "2020.05.26"]
[Round "6"]
[White "mishanick"]
[Black "Spartakus1975"]
[Result "1-0"]
[WhiteElo "2960"]
[BlackElo "2686"]
[TimeControl "180+1"]
[EndTime "11:08:01 PDT"]
[Termination "mishanick won by resignation"]

1. d4 {[%clk 0:03:00]} 1... d5 {[%clk 0:02:57.3]} 2. c4 {[%clk 0:03:00.1]} 2...
c6 {[%clk 0:02:52]} 3. Nf3 {[%clk 0:03:00.5]} 3... Nf6 {[%clk 0:02:50.1]} 4. Nc3
{[%clk 0:03:00.9]} 4... a6 {[%clk 0:02:49.6]} 5. e3 {[%clk 0:03:00.1]} 5... e6
{[%clk 0:02:46.5]} 6. Be2 {[%clk 0:02:56.9]} 6... c5 {[%clk 0:02:44.4]} 7. cxd5
{[%clk 0:02:56.5]} 7... exd5 {[%clk 0:02:42.2]} 8. O-O {[%clk 0:02:55.2]} 8...
Nc6 {[%clk 0:02:40.7]} 9. b3 {[%clk 0:02:55.2]} 9... cxd4 {[%clk 0:02:30.7]} 10.
Nxd4 {[%clk 0:02:56.1]} 10... Bd6 {[%clk 0:02:28.3]} 11. Bb2 {[%clk 0:02:55.7]}
11... O-O {[%clk 0:02:20.1]} 12. Rc1 {[%clk 0:02:54.4]} 12... Qe7 {[%clk
0:02:14.8]} 13. Bf3 {[%clk 0:02:51.9]} 13... Qe5 {[%clk 0:02:10.3]} 14. g3
{[%clk 0:02:52.1]} 14... Bh3 {[%clk 0:02:09.6]} 15. Re1 {[%clk 0:02:51.7]} 15...
Rac8 {[%clk 0:01:46.7]} 16. Nce2 {[%clk 0:01:55.8]} 16... Qg5 {[%clk 0:01:29.7]}
17. Nf4 {[%clk 0:01:45]} 17... Bd7 {[%clk 0:01:04.4]} 18. h4 {[%clk 0:01:24.2]}
18... Qe5 {[%clk 0:00:59.2]} 19. Rc2 {[%clk 0:00:48.8]} 19... Qe7 {[%clk
0:00:45]} 20. Nxd5 {[%clk 0:00:45.6]} 20... Nxd5 {[%clk 0:00:44.1]} 21. Bxd5
{[%clk 0:00:46.5]} 21... Ne5 {[%clk 0:00:43.4]} 22. Rxc8 {[%clk 0:00:41]} 22...
Bxc8 {[%clk 0:00:40.2]} 23. Qc2 {[%clk 0:00:39.4]} 23... g6 {[%clk 0:00:34.5]}
24. Bg2 {[%clk 0:00:38.5]} 24... Bg4 {[%clk 0:00:29.5]} 25. Qe4 {[%clk
0:00:37.3]} 25... Bc8 {[%clk 0:00:20]} 26. Rc1 {[%clk 0:00:35.3]} 26... Rd8
{[%clk 0:00:17.7]} 27. h5 {[%clk 0:00:34.6]} 27... Ng4 {[%clk 0:00:13.9]} 28.
Rxc8 {[%clk 0:00:26.9]} 28... Rxc8 {[%clk 0:00:10.2]} 29. Qxg4 {[%clk
0:00:27.1]} 29... Rd8 {[%clk 0:00:09.2]} 30. hxg6 {[%clk 0:00:24.7]} 30... hxg6
{[%clk 0:00:09.7]} 31. Bd5 {[%clk 0:00:25.2]} 31... Kf8 {[%clk 0:00:07.3]} 32.
Nf3 {[%clk 0:00:18]} 32... Ba3 {[%clk 0:00:05.9]} 33. Bxa3 {[%clk 0:00:17]}
33... Qxa3 {[%clk 0:00:05.6]} 34. Qg5 {[%clk 0:00:17.6]} 34... Qc1+ {[%clk
0:00:05.5]} 35. Kg2 {[%clk 0:00:17.9]} 35... Qc7 {[%clk 0:00:05.9]} 36. a4
{[%clk 0:00:14.9]} 36... Qe7 {[%clk 0:00:05]} 37. Qh6+ {[%clk 0:00:14.5]} 37...
Ke8 {[%clk 0:00:05.5]} 38. Bc4 {[%clk 0:00:14.7]} 38... Rd6 {[%clk 0:00:04.9]}
39. Qh8+ {[%clk 0:00:14.2]} 39... Kd7 {[%clk 0:00:04.4]} 40. Bxf7 {[%clk
0:00:12.5]} 40... Qxf7 {[%clk 0:00:03.5]} 41. Ne5+ {[%clk 0:00:12.3]} 41... Ke6
{[%clk 0:00:04.4]} 42. Nxf7 {[%clk 0:00:12.9]} 1-0